[Event "Titled Tuesday Blitz August 16 Early 2022"]
[White "Omelja, Artem"]
[Black "Fernandez Siles, Luis"]
[WhiteFideId "14119846"]
[BlackFideId "2209420"]
[WhiteElo "2382"]
[BlackElo "2211"]
[Result "1-0"]
[Round "08"]
[TimeControl "180+2"]
[Date "2022.08.18"]
[WhiteClock "0:00:00"]
[BlackClock "0:00:00"]

1. d4 {[%clk 0:00:00]}  Nf6 {[%clk 0:00:00]} 2. c4 {[%clk 0:00:00]}  g6 {[%clk 0:00:00]} 3. Nc3 {[%clk 0:00:00]}  Bg7 {[%clk 0:00:00]} 4. e4 {[%clk 0:00:00]}  d6 {[%clk 0:00:00]} 5. f3 {[%clk 0:00:00]}  O-O {[%clk 0:00:00]} 6. Nge2 {[%clk 0:00:00]}  e5 {[%clk 0:00:00]} 7. Be3 {[%clk 0:00:00]}  c6 {[%clk 0:00:00]} 8. Qd2 {[%clk 0:00:00]}  Nbd7 {[%clk 0:00:00]} 9. O-O-O {[%clk 0:00:00]}  a6 {[%clk 0:00:00]} 10. g4 {[%clk 0:00:00]}  h5 {[%clk 0:00:00]} 11. gxh5 {[%clk 0:00:00]}  Nxh5 {[%clk 0:00:00]} 12. Ng3 {[%clk 0:00:00]}  Nf4 {[%clk 0:00:00]} 13. Bxf4 {[%clk 0:00:00]}  exf4 {[%clk 0:00:00]} 14. Qxf4 {[%clk 0:00:00]}  c5 {[%clk 0:00:00]} 15. Nd5 {[%clk 0:00:00]}  cxd4 {[%clk 0:00:00]} 16. Qxd6 {[%clk 0:00:00]}  Re8 {[%clk 0:00:00]} 17. Qc7 {[%clk 0:00:00]}  Qh4 {[%clk 0:00:00]} 18. Be2 {[%clk 0:00:00]}  d3 {[%clk 0:00:00]} 19. Bxd3 {[%clk 0:00:00]}  b5 {[%clk 0:00:00]} 20. c5 {[%clk 0:00:00]}  Be5 {[%clk 0:00:00]} 21. Qc6 {[%clk 0:00:00]}  Rb8 {[%clk 0:00:00]} 22. Nb6 {[%clk 0:00:00]}  Re6 {[%clk 0:00:00]} 23. Qd5 {[%clk 0:00:00]}  Nxb6 {[%clk 0:00:00]} 24. cxb6 {[%clk 0:00:00]}  Kg7 {[%clk 0:00:00]} 25. Kb1 {[%clk 0:00:00]}  Rbxb6 {[%clk 0:00:00]} 26. Rhg1 {[%clk 0:00:00]}  Rbd6 {[%clk 0:00:00]} 27. Nf5+ {[%clk 0:00:00]}  Kf6 {[%clk 0:00:00]} 28. Nxd6 {[%clk 0:00:00]}  Rxd6 {[%clk 0:00:00]} 29. Qb3 {[%clk 0:00:00]}  Be6 {[%clk 0:00:00]} 30. Qc2 {[%clk 0:00:00]}  Qf4 {[%clk 0:00:00]} 31. Be2 {[%clk 0:00:00]}  Qe3 {[%clk 0:00:00]} 32. Rxd6 {[%clk 0:00:00]}  Qxg1+ {[%clk 0:00:00]} 33. Rd1 {[%clk 0:00:00]}  Qc5 {[%clk 0:00:00]} 34. Qxc5 {[%clk 0:00:00]}  g5 {[%clk 0:00:00]} 35. Qb6 {[%clk 0:00:00]}  Bf4 {[%clk 0:00:00]} 36. Qd8+ {[%clk 0:00:00]}  Kg7 {[%clk 0:00:00]} 37. Qd4+ {[%clk 0:00:00]}  Kg6 {[%clk 0:00:00]} 38. Rc1 {[%clk 0:00:00]}  Bxa2+ {[%clk 0:00:00]} 39. Kxa2 {[%clk 0:00:00]}  Be5 {[%clk 0:00:00]} 40. Qxe5 {[%clk 0:00:00]}  f6 {[%clk 0:00:00]} 41. Rc6 {[%clk 0:00:00]}  Kh5 {[%clk 0:00:00]} 42. Qf5 {[%clk 0:00:00]}  Kh4 {[%clk 0:00:00]} 43. Rc7 {[%clk 0:00:00]} 1-0


[Site "https://www.chess.com"]

[Event "Titled Tuesday Blitz August 16 Early 2022"]
[White "Oparin, Grigoriy"]
[Black "Mitrabha, Guha"]
[WhiteFideId "24125890"]
[BlackFideId "5057000"]
[WhiteElo "2639"]
[BlackElo "2499"]
[Result "1/2-1/2"]
[Round "08"]
[TimeControl "180+1"]
[Date "2022.08.16"]
[WhiteClock "0:00:14"]
[BlackClock "0:00:16"]

1. e4 {[%clk 0:03:00]}  c6 {[%clk 0:02:59]} 2. Nc3 {[%clk 0:03:00]}  d5 {[%clk 0:03:00]} 3. Nf3 {[%clk 0:03:01]}  dxe4 {[%clk 0:03:00]} 4. Nxe4 {[%clk 0:03:02]}  Nf6 {[%clk 0:03:01]} 5. Qe2 {[%clk 0:03:02]}  Nxe4 {[%clk 0:03:01]} 6. Qxe4 {[%clk 0:03:03]}  Be6 {[%clk 0:03:02]} 7. b3 {[%clk 0:03:00]}  Nd7 {[%clk 0:03:02]} 8. Bc4 {[%clk 0:02:58]}  Nf6 {[%clk 0:03:02]} 9. Qe3 {[%clk 0:02:52]}  Bf5 {[%clk 0:03:01]} 10. O-O {[%clk 0:02:52]}  e6 {[%clk 0:03:01]} 11. Bb2 {[%clk 0:02:50]}  Be7 {[%clk 0:03:02]} 12. Nh4 {[%clk 0:02:45]}  Bxc2 {[%clk 0:02:55]} 13. d3 {[%clk 0:02:18]}  b5 {[%clk 0:02:55]} 14. Rac1 {[%clk 0:02:18]}  bxc4 {[%clk 0:02:55]} 15. Rxc2 {[%clk 0:02:18]}  cxb3 {[%clk 0:02:44]} 16. axb3 {[%clk 0:02:18]}  Qd5 {[%clk 0:02:43]} 17. Nf3 {[%clk 0:02:06]}  O-O {[%clk 0:02:40]} 18. Nd2 {[%clk 0:02:01]}  Qd7 {[%clk 0:02:12]} 19. Rfc1 {[%clk 0:01:55]}  Rac8 {[%clk 0:02:11]} 20. Bxf6 {[%clk 0:01:53]}  Bxf6 {[%clk 0:02:11]} 21. Ne4 {[%clk 0:01:52]}  Be7 {[%clk 0:02:11]} 22. g3 {[%clk 0:01:43]}  Rfd8 {[%clk 0:02:11]} 23. Rc3 {[%clk 0:01:43]}  h6 {[%clk 0:02:10]} 24. h4 {[%clk 0:01:42]}  a5 {[%clk 0:02:09]} 25. Nc5 {[%clk 0:01:38]}  Qd5 {[%clk 0:02:05]} 26. Qf4 {[%clk 0:00:45]}  Bxc5 {[%clk 0:01:45]} 27. Rxc5 {[%clk 0:00:46]}  Qxb3 {[%clk 0:01:43]} 28. Rxa5 {[%clk 0:00:42]}  Rxd3 {[%clk 0:01:36]} 29. Ra7 {[%clk 0:00:40]}  Rf8 {[%clk 0:01:32]} 30. Rc7 {[%clk 0:00:29]}  Rd1+ {[%clk 0:01:14]} 31. Rxd1 {[%clk 0:00:25]}  Qxd1+ {[%clk 0:01:15]} 32. Kg2 {[%clk 0:00:25]}  Qd5+ {[%clk 0:01:15]} 33. Qf3 {[%clk 0:00:26]}  c5 {[%clk 0:00:39]} 34. Qxd5 {[%clk 0:00:24]}  exd5 {[%clk 0:00:40]} 35. Rxc5 {[%clk 0:00:24]}  Rd8 {[%clk 0:00:41]} 36. Kf3 {[%clk 0:00:23]}  g6 {[%clk 0:00:20]} 37. Ke3 {[%clk 0:00:23]}  Kg7 {[%clk 0:00:20]} 38. Kd4 {[%clk 0:00:21]}  Kf6 {[%clk 0:00:15]} 39. f3 {[%clk 0:00:19]}  Ke6 {[%clk 0:00:15]} 40. Rc6+ {[%clk 0:00:18]}  Rd6 {[%clk 0:00:16]} 41. Rc8 {[%clk 0:00:17]}  h5 {[%clk 0:00:16]} 42. Re8+ {[%clk 0:00:17]}  Kf6 {[%clk 0:00:17]} 43. Re5 {[%clk 0:00:14]}  Ra6 {[%clk 0:00:17]} 44. Rxd5 {[%clk 0:00:14]}  Ra2 {[%clk 0:00:16]} 45. Ke3 {[%clk 0:00:13]}  Rg2 {[%clk 0:00:16]} 46. Kf4 {[%clk 0:00:13]}  Ra2 {[%clk 0:00:16]} 47. Rd6+ {[%clk 0:00:14]} 1/2-1/2


[Site "https://www.chess.com"]

[Event "Titled Tuesday Blitz August 16 Early 2022"]
[White "Orlov, Georgi"]
[Black "Demchenko, Anton"]
[WhiteFideId "2011271"]
[BlackFideId "4160258"]
[WhiteElo "2584"]
[BlackElo "2539"]
[Result "0-1"]
[Round "08"]
[TimeControl "180+1"]
[Date "2022.08.16"]
[WhiteClock "0:00:19"]
[BlackClock "0:00:45"]

1. d3 {[%clk 0:02:56]}  d6 {[%clk 0:02:58]} 2. Nf3 {[%clk 0:02:56]}  Nf6 {[%clk 0:02:57]} 3. g3 {[%clk 0:02:56]}  g6 {[%clk 0:02:57]} 4. Bg2 {[%clk 0:02:57]}  Bg7 {[%clk 0:02:58]} 5. O-O {[%clk 0:02:58]}  O-O {[%clk 0:02:58]} 6. c4 {[%clk 0:02:58]}  Nbd7 {[%clk 0:02:55]} 7. Nc3 {[%clk 0:02:58]}  a5 {[%clk 0:02:55]} 8. a3 {[%clk 0:02:56]}  c6 {[%clk 0:02:56]} 9. Rb1 {[%clk 0:02:55]}  Nb6 {[%clk 0:02:56]} 10. h3 {[%clk 0:02:52]}  a4 {[%clk 0:02:54]} 11. Be3 {[%clk 0:02:50]}  Nfd7 {[%clk 0:02:48]} 12. Qd2 {[%clk 0:02:46]}  Re8 {[%clk 0:02:45]} 13. Bh6 {[%clk 0:02:46]}  Bh8 {[%clk 0:02:43]} 14. e4 {[%clk 0:02:43]}  Nc5 {[%clk 0:02:42]} 15. Be3 {[%clk 0:02:20]}  e5 {[%clk 0:02:32]} 16. Ne1 {[%clk 0:02:11]}  Nb3 {[%clk 0:02:26]} 17. Qd1 {[%clk 0:02:08]}  Nd4 {[%clk 0:02:21]} 18. f4 {[%clk 0:02:08]}  exf4 {[%clk 0:02:20]} 19. Bxf4 {[%clk 0:02:02]}  Nd7 {[%clk 0:01:55]} 20. Nxa4 {[%clk 0:01:47]}  Be5 {[%clk 0:01:46]} 21. Nc3 {[%clk 0:01:45]}  Nc5 {[%clk 0:01:39]} 22. Nf3 {[%clk 0:01:33]}  Nxf3+ {[%clk 0:01:30]} 23. Qxf3 {[%clk 0:01:32]}  Qe7 {[%clk 0:01:31]} 24. Rbd1 {[%clk 0:01:17]}  Ne6 {[%clk 0:01:30]} 25. Kh2 {[%clk 0:01:08]}  h5 {[%clk 0:01:21]} 26. Bc1 {[%clk 0:00:57]}  h4 {[%clk 0:01:17]} 27. Ne2 {[%clk 0:00:55]}  hxg3+ {[%clk 0:01:08]} 28. Kh1 {[%clk 0:00:52]}  c5 {[%clk 0:01:06]} 29. Nxg3 {[%clk 0:00:42]}  Nd4 {[%clk 0:01:07]} 30. Qf2 {[%clk 0:00:42]}  Be6 {[%clk 0:01:06]} 31. Ne2 {[%clk 0:00:33]}  Kg7 {[%clk 0:01:02]} 32. Nf4 {[%clk 0:00:33]}  Rh8 {[%clk 0:01:00]} 33. Nxe6+ {[%clk 0:00:32]}  Qxe6 {[%clk 0:00:58]} 34. Bf4 {[%clk 0:00:27]}  Rxh3+ {[%clk 0:00:56]} 35. Bxh3 {[%clk 0:00:27]}  Qxh3+ {[%clk 0:00:57]} 36. Qh2 {[%clk 0:00:27]}  Qe6 {[%clk 0:00:55]} 37. Bxe5+ {[%clk 0:00:24]}  dxe5 {[%clk 0:00:55]} 38. Qg3 {[%clk 0:00:23]}  Ne2 {[%clk 0:00:51]} 39. Qf3 {[%clk 0:00:19]}  Rh8+ {[%clk 0:00:46]} 40. Kg2 {[%clk 0:00:19]}  Nf4+ {[%clk 0:00:47]} 41. Kg1 {[%clk 0:00:19]}  Rh3 {[%clk 0:00:45]} 0-1


[Site "https://www.chess.com"]

[Event "Titled Tuesday Blitz August 16 Early 2022"]
[White "Piesik, Piotr"]
[Black "Samunenkov, Ihor"]
[WhiteFideId "1136194"]
[BlackFideId "14187086"]
[WhiteElo "2221"]
[BlackElo "2441"]
[Result "0-1"]
[Round "08"]
[TimeControl "180+1"]
[Date "2022.08.16"]
[WhiteClock "0:02:06"]
[BlackClock "0:01:20"]

1. Nf3 {[%clk 0:02:54]}  Nf6 {[%clk 0:02:59]} 2. g3 {[%clk 0:02:54]}  c5 {[%clk 0:02:59]} 3. Bg2 {[%clk 0:02:55]}  Nc6 {[%clk 0:03:00]} 4. O-O {[%clk 0:02:56]}  e5 {[%clk 0:03:00]} 5. d3 {[%clk 0:02:54]}  d5 {[%clk 0:03:00]} 6. Nbd2 {[%clk 0:02:54]}  Be7 {[%clk 0:02:51]} 7. e4 {[%clk 0:02:54]}  O-O {[%clk 0:02:50]} 8. c3 {[%clk 0:02:54]}  Re8 {[%clk 0:02:33]} 9. exd5 {[%clk 0:02:52]}  Nxd5 {[%clk 0:02:31]} 10. Re1 {[%clk 0:02:52]}  Bf8 {[%clk 0:02:30]} 11. Nc4 {[%clk 0:02:52]}  f6 {[%clk 0:02:29]} 12. a4 {[%clk 0:02:50]}  Be6 {[%clk 0:02:27]} 13. a5 {[%clk 0:02:49]}  Kh8 {[%clk 0:02:22]} 14. Qa4 {[%clk 0:02:47]}  Qd7 {[%clk 0:02:11]} 15. Nfd2 {[%clk 0:02:42]}  Rad8 {[%clk 0:01:55]} 16. a6 {[%clk 0:02:26]}  b6 {[%clk 0:01:54]} 17. Na3 {[%clk 0:02:21]}  Nde7 {[%clk 0:01:32]} 18. Ndc4 {[%clk 0:02:08]}  Bd5 {[%clk 0:01:29]} 19. Bf1 {[%clk 0:02:06]}  Nd4 {[%clk 0:01:20]} 0-1


[Site "https://www.chess.com"]

[Event "Titled Tuesday Blitz August 16 Early 2022"]
[White "Popilski, Gil"]
[Black "Csonka, Balazs"]
[WhiteFideId "2809060"]
[BlackFideId "742910"]
[WhiteElo "2537"]
[BlackElo "2404"]
[Result "0-1"]
[Round "08"]
[TimeControl "180+1"]
[Date "2022.08.16"]
[WhiteClock "0:00:41"]
[BlackClock "0:00:04"]

1. d4 {[%clk 0:03:00]}  Nf6 {[%clk 0:02:58]} 2. c4 {[%clk 0:03:00]}  e6 {[%clk 0:02:57]} 3. Nf3 {[%clk 0:02:59]}  d5 {[%clk 0:02:54]} 4. Nc3 {[%clk 0:02:59]}  c6 {[%clk 0:02:50]} 5. Bg5 {[%clk 0:02:58]}  dxc4 {[%clk 0:02:50]} 6. e4 {[%clk 0:02:58]}  b5 {[%clk 0:02:50]} 7. e5 {[%clk 0:02:57]}  h6 {[%clk 0:02:51]} 8. Bh4 {[%clk 0:02:58]}  g5 {[%clk 0:02:51]} 9. Nxg5 {[%clk 0:02:58]}  hxg5 {[%clk 0:02:52]} 10. Bxg5 {[%clk 0:02:59]}  Nbd7 {[%clk 0:02:48]} 11. g3 {[%clk 0:02:58]}  Bb7 {[%clk 0:02:48]} 12. Bg2 {[%clk 0:02:58]}  Qb6 {[%clk 0:02:48]} 13. exf6 {[%clk 0:02:58]}  O-O-O {[%clk 0:02:47]} 14. O-O {[%clk 0:02:56]}  c5 {[%clk 0:02:48]} 15. d5 {[%clk 0:02:55]}  b4 {[%clk 0:02:47]} 16. Re1 {[%clk 0:02:52]}  bxc3 {[%clk 0:02:24]} 17. bxc3 {[%clk 0:02:53]}  exd5 {[%clk 0:01:32]} 18. Rb1 {[%clk 0:02:51]}  Qc6 {[%clk 0:01:11]} 19. Rxb7 {[%clk 0:02:49]}  Qxb7 {[%clk 0:01:10]} 20. Bxd5 {[%clk 0:02:49]}  Qc7 {[%clk 0:01:04]} 21. Bxf7 {[%clk 0:02:25]}  Bh6 {[%clk 0:00:54]} 22. Qg4 {[%clk 0:01:46]}  Bxg5 {[%clk 0:00:34]} 23. Qxg5 {[%clk 0:01:46]}  Qd6 {[%clk 0:00:30]} 24. Re6 {[%clk 0:01:40]}  Qd1+ {[%clk 0:00:29]} 25. Kg2 {[%clk 0:01:40]}  Rxh2+ {[%clk 0:00:30]} 26. Kxh2 {[%clk 0:01:37]}  Rh8+ {[%clk 0:00:31]} 27. Qh4 {[%clk 0:01:29]}  Rxh4+ {[%clk 0:00:30]} 28. gxh4 {[%clk 0:01:30]}  Qg4 {[%clk 0:00:28]} 29. Rc6+ {[%clk 0:01:17]}  Kd8 {[%clk 0:00:23]} 30. Be6 {[%clk 0:01:17]}  Qxh4+ {[%clk 0:00:23]} 31. Kg1 {[%clk 0:01:17]}  Nxf6 {[%clk 0:00:22]} 32. Rxc5 {[%clk 0:01:13]}  Ne4 {[%clk 0:00:18]} 33. Rf5 {[%clk 0:01:07]}  Ke7 {[%clk 0:00:12]} 34. Bc8 {[%clk 0:00:58]}  Nxc3 {[%clk 0:00:06]} 35. Rf3 {[%clk 0:00:52]}  Ne4 {[%clk 0:00:05]} 36. Re3 {[%clk 0:00:51]}  Kd6 {[%clk 0:00:06]} 37. Re2 {[%clk 0:00:50]}  c3 {[%clk 0:00:06]} 38. Bb7 {[%clk 0:00:49]}  Nxf2 {[%clk 0:00:05]} 39. Kf1 {[%clk 0:00:45]}  Ng4 {[%clk 0:00:05]} 40. Be4 {[%clk 0:00:43]}  Ne5 {[%clk 0:00:04]} 41. Bc2 {[%clk 0:00:42]}  Qf4+ {[%clk 0:00:04]} 42. Kg2 {[%clk 0:00:41]}  Qf3+ {[%clk 0:00:04]} 0-1


[Site "https://www.chess.com"]

[Event "Titled Tuesday Blitz August 16 Early 2022"]
[White "Pourkashiyan, Atousa"]
[Black "Dushyant Sharma"]
[WhiteFideId "12502014"]
[BlackFideId "25065130"]
[WhiteElo "2247"]
[BlackElo "2133"]
[Result "0-1"]
[Round "08"]
[TimeControl "180+2"]
[Date "2022.08.18"]
[WhiteClock "0:00:00"]
[BlackClock "0:00:00"]

1. e4 {[%clk 0:00:00]}  d5 {[%clk 0:00:00]} 2. exd5 {[%clk 0:00:00]}  Nf6 {[%clk 0:00:00]} 3. Bb5+ {[%clk 0:00:00]}  c6 {[%clk 0:00:00]} 4. dxc6 {[%clk 0:00:00]}  Nxc6 {[%clk 0:00:00]} 5. Nf3 {[%clk 0:00:00]}  Bg4 {[%clk 0:00:00]} 6. O-O {[%clk 0:00:00]}  e6 {[%clk 0:00:00]} 7. Nc3 {[%clk 0:00:00]}  Bd6 {[%clk 0:00:00]} 8. h3 {[%clk 0:00:00]}  Bh5 {[%clk 0:00:00]} 9. d4 {[%clk 0:00:00]}  O-O {[%clk 0:00:00]} 10. Be2 {[%clk 0:00:00]}  Bxf3 {[%clk 0:00:00]} 11. Bxf3 {[%clk 0:00:00]}  Nxd4 {[%clk 0:00:00]} 12. Bxb7 {[%clk 0:00:00]}  Rb8 {[%clk 0:00:00]} 13. Bf3 {[%clk 0:00:00]}  h6 {[%clk 0:00:00]} 14. Kh1 {[%clk 0:00:00]}  Be5 {[%clk 0:00:00]} 15. Re1 {[%clk 0:00:00]}  Qa5 {[%clk 0:00:00]} 16. Bd2 {[%clk 0:00:00]}  Nxf3 {[%clk 0:00:00]} 17. Qxf3 {[%clk 0:00:00]}  Rfd8 {[%clk 0:00:00]} 18. Ne4 {[%clk 0:00:00]}  Qd5 {[%clk 0:00:00]} 19. Nxf6+ {[%clk 0:00:00]}  Bxf6 {[%clk 0:00:00]} 20. Qxd5 {[%clk 0:00:00]}  Rxd5 {[%clk 0:00:00]} 21. Bc3 {[%clk 0:00:00]}  Bxc3 {[%clk 0:00:00]} 22. bxc3 {[%clk 0:00:00]}  Rb2 {[%clk 0:00:00]} 23. Re2 {[%clk 0:00:00]}  Rc5 {[%clk 0:00:00]} 24. a4 {[%clk 0:00:00]}  Rxc3 {[%clk 0:00:00]} 25. a5 {[%clk 0:00:00]}  a6 {[%clk 0:00:00]} 26. Kg1 {[%clk 0:00:00]}  Rcxc2 {[%clk 0:00:00]} 27. Rxc2 {[%clk 0:00:00]}  Rxc2 {[%clk 0:00:00]} 28. g3 {[%clk 0:00:00]}  Rc5 {[%clk 0:00:00]} 29. Kf1 {[%clk 0:00:00]}  f5 {[%clk 0:00:00]} 30. Ke2 {[%clk 0:00:00]}  e5 {[%clk 0:00:00]} 31. h4 {[%clk 0:00:00]}  Kf7 {[%clk 0:00:00]} 32. Kd3 {[%clk 0:00:00]}  Kf6 {[%clk 0:00:00]} 33. Ra4 {[%clk 0:00:00]}  g5 {[%clk 0:00:00]} 34. hxg5+ {[%clk 0:00:00]}  hxg5 {[%clk 0:00:00]} 35. Ke3 {[%clk 0:00:00]}  Ke6 {[%clk 0:00:00]} 36. f3 {[%clk 0:00:00]}  Kd5 {[%clk 0:00:00]} 37. g4 {[%clk 0:00:00]}  f4+ {[%clk 0:00:00]} 38. Kd3 {[%clk 0:00:00]}  Rb5 {[%clk 0:00:00]} 39. Ra3 {[%clk 0:00:00]}  Kc5 {[%clk 0:00:00]} 40. Ke4 {[%clk 0:00:00]}  Kb4 {[%clk 0:00:00]} 41. Ra1 {[%clk 0:00:00]}  Rxa5 {[%clk 0:00:00]} 42. Rb1+ {[%clk 0:00:00]}  Kc3 {[%clk 0:00:00]} 43. Rb8 {[%clk 0:00:00]}  Kd2 {[%clk 0:00:00]} 44. Rg8 {[%clk 0:00:00]}  Ke2 {[%clk 0:00:00]} 45. Rxg5 {[%clk 0:00:00]}  Ra4+ {[%clk 0:00:00]} 46. Kxe5 {[%clk 0:00:00]}  Kxf3 {[%clk 0:00:00]} 47. Rg8 {[%clk 0:00:00]}  Ra5+ {[%clk 0:00:00]} 48. Kf6 {[%clk 0:00:00]}  Rb5 {[%clk 0:00:00]} 49. g5 {[%clk 0:00:00]}  Kg4 {[%clk 0:00:00]} 50. g6 {[%clk 0:00:00]}  f3 {[%clk 0:00:00]} 51. Rf8 {[%clk 0:00:00]}  Rf5+ {[%clk 0:00:00]} 52. Kg7 {[%clk 0:00:00]}  Rxf8 {[%clk 0:00:00]} 53. Kxf8 {[%clk 0:00:00]}  f2 {[%clk 0:00:00]} 54. g7 {[%clk 0:00:00]}  f1=Q+ {[%clk 0:00:00]} 55. Ke7 {[%clk 0:00:00]}  Qc4 {[%clk 0:00:00]} 0-1


[Site "https://www.chess.com"]

[Event "Titled Tuesday Blitz August 16 Early 2022"]
[White "Proudian, Armen"]
[Black "Tica, Sven"]
[WhiteFideId "2130734"]
[BlackFideId "14526948"]
[WhiteElo "2380"]
[BlackElo "2350"]
[Result "0-1"]
[Round "08"]
[TimeControl "180+2"]
[Date "2022.08.18"]
[WhiteClock "0:00:00"]
[BlackClock "0:00:00"]

1. e4 {[%clk 0:00:00]}  g6 {[%clk 0:00:00]} 2. d4 {[%clk 0:00:00]}  Bg7 {[%clk 0:00:00]} 3. Nc3 {[%clk 0:00:00]}  a6 {[%clk 0:00:00]} 4. Be3 {[%clk 0:00:00]}  b5 {[%clk 0:00:00]} 5. Qd2 {[%clk 0:00:00]}  Bb7 {[%clk 0:00:00]} 6. f3 {[%clk 0:00:00]}  d6 {[%clk 0:00:00]} 7. h4 {[%clk 0:00:00]}  h5 {[%clk 0:00:00]} 8. Nh3 {[%clk 0:00:00]}  Nd7 {[%clk 0:00:00]} 9. Ng5 {[%clk 0:00:00]}  Rc8 {[%clk 0:00:00]} 10. a4 {[%clk 0:00:00]}  b4 {[%clk 0:00:00]} 11. Ne2 {[%clk 0:00:00]}  c5 {[%clk 0:00:00]} 12. c3 {[%clk 0:00:00]}  bxc3 {[%clk 0:00:00]} 13. bxc3 {[%clk 0:00:00]}  c4 {[%clk 0:00:00]} 14. Nf4 {[%clk 0:00:00]}  Qa5 {[%clk 0:00:00]} 15. g4 {[%clk 0:00:00]}  hxg4 {[%clk 0:00:00]} 16. fxg4 {[%clk 0:00:00]}  Ngf6 {[%clk 0:00:00]} 17. Bg2 {[%clk 0:00:00]}  Nxg4 {[%clk 0:00:00]} 18. Nxf7 {[%clk 0:00:00]}  Kxf7 {[%clk 0:00:00]} 19. O-O {[%clk 0:00:00]}  Kg8 {[%clk 0:00:00]} 20. Nxg6 {[%clk 0:00:00]}  Rh5 {[%clk 0:00:00]} 21. Nxe7+ {[%clk 0:00:00]}  Kh8 {[%clk 0:00:00]} 22. Nxc8 {[%clk 0:00:00]}  Bxc8 {[%clk 0:00:00]} 23. Rf7 {[%clk 0:00:00]}  Nxe3 {[%clk 0:00:00]} 24. Qxe3 {[%clk 0:00:00]}  Qd8 {[%clk 0:00:00]} 25. Qg3 {[%clk 0:00:00]}  Qg8 {[%clk 0:00:00]} 26. Raf1 {[%clk 0:00:00]}  Bxd4+ {[%clk 0:00:00]} 27. Kh2 {[%clk 0:00:00]}  Be5 {[%clk 0:00:00]} 28. R7f4 {[%clk 0:00:00]}  Qxg3+ {[%clk 0:00:00]} 29. Kxg3 {[%clk 0:00:00]}  Kg7 {[%clk 0:00:00]} 30. Rf3 {[%clk 0:00:00]}  Nc5 {[%clk 0:00:00]} 31. Kf2 {[%clk 0:00:00]}  Bxf4 {[%clk 0:00:00]} 32. Rxf4 {[%clk 0:00:00]}  Nd3+ {[%clk 0:00:00]} 33. Ke3 {[%clk 0:00:00]}  Nxf4 {[%clk 0:00:00]} 34. Kxf4 {[%clk 0:00:00]}  Rxh4+ {[%clk 0:00:00]} 35. Ke3 {[%clk 0:00:00]}  Kf6 {[%clk 0:00:00]} 36. Kd4 {[%clk 0:00:00]}  Be6 {[%clk 0:00:00]} 37. a5 {[%clk 0:00:00]}  d5 {[%clk 0:00:00]} 38. Bf3 {[%clk 0:00:00]}  dxe4 {[%clk 0:00:00]} 39. Be2 {[%clk 0:00:00]}  Ke7 {[%clk 0:00:00]} 40. Ke5 {[%clk 0:00:00]}  e3 {[%clk 0:00:00]} 41. Bg4 {[%clk 0:00:00]}  Bxg4 {[%clk 0:00:00]} 42. Kd4 {[%clk 0:00:00]}  e2 {[%clk 0:00:00]} 43. Ke5 {[%clk 0:00:00]}  e1=Q+ {[%clk 0:00:00]} 44. Kd5 {[%clk 0:00:00]}  Be6+ {[%clk 0:00:00]} 45. Kc5 {[%clk 0:00:00]}  Rh5+ {[%clk 0:00:00]} 46. Kb4 {[%clk 0:00:00]}  Qb1+ {[%clk 0:00:00]} 47. Ka3 {[%clk 0:00:00]}  Rxa5# {[%clk 0:00:00]} 0-1


[Site "https://www.chess.com"]

[Event "Titled Tuesday Blitz August 16 Early 2022"]
[White "Przybylski, Wojciech"]
[Black "Barp, Alberto"]
[WhiteFideId "1117599"]
[BlackFideId "872555"]
[WhiteElo "2321"]
[BlackElo "2426"]
[Result "1-0"]
[Round "08"]
[TimeControl "180+2"]
[Date "2022.08.18"]
[WhiteClock "0:00:00"]
[BlackClock "0:00:00"]

1. e4 {[%clk 0:00:00]}  c5 {[%clk 0:00:00]} 2. Nf3 {[%clk 0:00:00]}  a6 {[%clk 0:00:00]} 3. c4 {[%clk 0:00:00]}  Nc6 {[%clk 0:00:00]} 4. Nc3 {[%clk 0:00:00]}  e5 {[%clk 0:00:00]} 5. g3 {[%clk 0:00:00]}  g6 {[%clk 0:00:00]} 6. Bg2 {[%clk 0:00:00]}  Bg7 {[%clk 0:00:00]} 7. O-O {[%clk 0:00:00]}  Nge7 {[%clk 0:00:00]} 8. Nd5 {[%clk 0:00:00]}  O-O {[%clk 0:00:00]} 9. d3 {[%clk 0:00:00]}  d6 {[%clk 0:00:00]} 10. h3 {[%clk 0:00:00]}  Rb8 {[%clk 0:00:00]} 11. a4 {[%clk 0:00:00]}  h6 {[%clk 0:00:00]} 12. Kh2 {[%clk 0:00:00]}  Kh7 {[%clk 0:00:00]} 13. b3 {[%clk 0:00:00]}  f5 {[%clk 0:00:00]} 14. Bd2 {[%clk 0:00:00]}  Be6 {[%clk 0:00:00]} 15. Ng1 {[%clk 0:00:00]}  Nd4 {[%clk 0:00:00]} 16. Ne2 {[%clk 0:00:00]}  fxe4 {[%clk 0:00:00]} 17. Nxd4 {[%clk 0:00:00]}  exd4 {[%clk 0:00:00]} 18. Nxe7 {[%clk 0:00:00]}  Qxe7 {[%clk 0:00:00]} 19. Bxe4 {[%clk 0:00:00]}  Qd7 {[%clk 0:00:00]} 20. h4 {[%clk 0:00:00]}  Bg4 {[%clk 0:00:00]} 21. f3 {[%clk 0:00:00]}  Bf5 {[%clk 0:00:00]} 22. Qe2 {[%clk 0:00:00]}  Rbe8 {[%clk 0:00:00]} 23. Rae1 {[%clk 0:00:00]}  h5 {[%clk 0:00:00]} 24. Qg2 {[%clk 0:00:00]}  Bh3 {[%clk 0:00:00]} 25. Qxh3 {[%clk 0:00:00]} 1-0


[Site "https://www.chess.com"]

[Event "Titled Tuesday Blitz August 16 Early 2022"]
[White "Qashashvili, Alexandre"]
[Black "Novikova, Galina"]
[WhiteFideId "13600842"]
[BlackFideId "4157095"]
[WhiteElo "2316"]
[BlackElo "1923"]
[Result "0-1"]
[Round "08"]
[TimeControl "180+2"]
[Date "2022.08.18"]
[WhiteClock "0:00:00"]
[BlackClock "0:00:00"]

1. e4 {[%clk 0:00:00]}  e6 {[%clk 0:00:00]} 2. d4 {[%clk 0:00:00]}  d5 {[%clk 0:00:00]} 3. Nc3 {[%clk 0:00:00]}  Bb4 {[%clk 0:00:00]} 4. exd5 {[%clk 0:00:00]}  exd5 {[%clk 0:00:00]} 5. Bd2 {[%clk 0:00:00]}  Ne7 {[%clk 0:00:00]} 6. Nf3 {[%clk 0:00:00]}  c6 {[%clk 0:00:00]} 7. Be2 {[%clk 0:00:00]}  O-O {[%clk 0:00:00]} 8. Ne5 {[%clk 0:00:00]}  Bf5 {[%clk 0:00:00]} 9. O-O {[%clk 0:00:00]}  Nd7 {[%clk 0:00:00]} 10. Bg4 {[%clk 0:00:00]}  Nxe5 {[%clk 0:00:00]} 11. Bxf5 {[%clk 0:00:00]}  Nxf5 {[%clk 0:00:00]} 12. dxe5 {[%clk 0:00:00]}  d4 {[%clk 0:00:00]} 13. Ne4 {[%clk 0:00:00]}  Bxd2 {[%clk 0:00:00]} 14. Qxd2 {[%clk 0:00:00]}  Qd5 {[%clk 0:00:00]} 15. Qf4 {[%clk 0:00:00]}  Ne7 {[%clk 0:00:00]} 16. Nf6+ {[%clk 0:00:00]}  gxf6 {[%clk 0:00:00]} 17. exf6 {[%clk 0:00:00]}  Qf5 {[%clk 0:00:00]} 18. Qxd4 {[%clk 0:00:00]}  Nd5 {[%clk 0:00:00]} 19. c4 {[%clk 0:00:00]}  Nxf6 {[%clk 0:00:00]} 20. h3 {[%clk 0:00:00]}  c5 {[%clk 0:00:00]} 21. Qe3 {[%clk 0:00:00]}  Rfe8 {[%clk 0:00:00]} 22. Qg3+ {[%clk 0:00:00]}  Kh8 {[%clk 0:00:00]} 23. Qc7 {[%clk 0:00:00]}  Rg8 {[%clk 0:00:00]} 24. Qxf7 {[%clk 0:00:00]}  Qg6 {[%clk 0:00:00]} 25. Qxb7 {[%clk 0:00:00]}  Ne4 {[%clk 0:00:00]} 26. Rae1 {[%clk 0:00:00]}  Qxg2# {[%clk 0:00:00]} 0-1


[Site "https://www.chess.com"]